fUSD/lending_fUSD_20241223
["ID","MTS","AMOUNT","RATE_DAILY","PERIOD"]
[346373544,1734919840578,-1884.83,0.00019499,2]
[346373546,1734919840589,-2006.44,0.00019499,2]
[346373548,1734919840602,-500.0,0.00019499,2]
[346373550,1734919840612,-2122.0,0.00019499,2]
[346373552,1734919840622,-702.11,0.00019499,2]
[346373554,1734919840632,-500.0,0.00019499,2]
[346373555,1734919840641,-500.0,0.00019499,2]
[346373556,1734919840650,-500.0,0.00019499,2]
[346373557,1734919840660,-500.0,0.00019499,2]
[346373559,1734919840671,-1688.06,0.00019499,2]
[346373561,1734919840681,-1274.54,0.00019499,2]
[346373563,1734919840691,-567.54,0.00019499,2]
[346373564,1734919840701,-500.0,0.00019499,2]
[346373565,1734919840711,-930.24,0.00019499,2]
[346373566,1734919840721,-534.34,0.00019499,2]
[346373567,1734919840730,-505.94,0.00019499,2]
[346373568,1734919840740,-500.0,0.00019499,2]
[346373569,1734919840749,-504.59,0.00019499,2]
[346373570,1734919840759,-506.91,0.00019499,2]
[346373571,1734919840768,-510.88,0.00019499,2]
[346373572,1734919840777,-868.89,0.00019499,2]
[346373573,1734919840787,-4121.64,0.00019499,2]
[346373574,1734919840797,-500.0,0.00019499,2]
[346373575,1734919840806,-1992.85,0.00019499,2]
[346373576,1734919840815,-736.85,0.00019499,2]
[346373577,1734919840824,-500.0,0.00019499,2]
[346373578,1734919840834,-3198.53,0.00019499,2]
[346373579,1734919840842,-724.39,0.00019499,2]
[346373580,1734919840855,-500.0,0.00019499,2]
[346373581,1734919840864,-1520.55,0.00019499,2]
[346373582,1734919840873,-509.89,0.00019499,2]
[346373583,1734919840883,-500.0,0.00019499,2]
[346373584,1734919840892,-590.06,0.00019499,2]
[346373585,1734919840901,-500.0,0.00019499,2]
[346373586,1734919840911,-957.53,0.00019499,2]
[346373587,1734919840920,-500.0,0.00019499,2]
[346373588,1734919840929,-4431.66,0.00019499,2]
[346373589,1734919840939,-500.0,0.00019499,2]
[346373590,1734919840948,-500.0,0.00019499,2]
[346373591,1734919840957,-808.19,0.00019499,2]
[346373592,1734919840967,-780.83,0.00019499,2]
[346373593,1734919840976,-500.0,0.00019499,2]
[346373594,1734919840985,-500.0,0.00019499,2]
[346373595,1734919840995,-522.09,0.00019499,2]
[346373596,1734919841005,-500.0,0.00019499,2]
[346373597,1734919841014,-555.78,0.00019499,2]
[346373598,1734919841023,-987.43,0.00019499,2]
[346373599,1734919841037,-500.0,0.00019499,2]
[346373600,1734919841047,-500.0,0.00019499,2]
[346373601,1734919841055,-500.0,0.00019499,2]
[346373602,1734919841065,-161.3091848,0.00019499,2]
[346373603,1734919841074,-500.0,0.00019499,2]
[346373604,1734919841083,-500.0,0.00019499,2]
[346373605,1734919841092,-406.75294569,0.00019499,2]
[346373606,1734919841105,-606.23769218,0.00019499,2]
[346373607,1734919841114,-500.0,0.00019499,2]
[346373608,1734919841123,-500.0,0.00019499,2]
[346373609,1734919841133,-500.0,0.00019499,2]
[346373610,1734919841142,-433.50839479,0.00019499,2]
[346373611,1734919841151,-500.0,0.00019499,2]
[346373612,1734919841160,-500.0,0.00019499,2]
[346373613,1734919841170,-500.0,0.00019499,2]
[346373614,1734919841179,-537.16,0.00019499,2]
[346373615,1734919841188,-500.0,0.00019499,2]
[346373616,1734919841201,-500.0,0.00019499,2]
[346373617,1734919841210,-500.0,0.00019499,2]
[346373618,1734919841219,-500.0,0.00019499,2]
[346373619,1734919841228,-490.27107054,0.00019499,2]
[346373620,1734919841237,-868.9,0.00019499,2]
[346373621,1734919841247,-92843.0,0.000195,2]
[346373622,1734919841256,-158860.56041007,0.000195,2]
[346373623,1734919841265,-845.24403731,0.0001951,2]
[346373624,1734919841280,-165.10718722,0.00019538,2]
[346373625,1734919841292,-217.8578446,0.00019543,2]
[346373626,1734919841305,-500.0,0.00019565,2]
[346373627,1734919841317,-1579.66,0.00019565,2]
[346373628,1734919841328,-2050.29,0.00019565,2]
[346373629,1734919841339,-10051.38,0.00019565,2]
[346373630,1734919841354,-1199.03,0.00019565,2]
[346373631,1734919841365,-722.85,0.00019565,2]
[346373632,1734919841377,-514.7,0.00019565,2]
[346373633,1734919841389,-1469.37,0.00019565,2]
[346373634,1734919841401,-7966.05,0.00019565,2]
[346373635,1734919841414,-500.0,0.00019565,2]
[346373636,1734919841425,-838.24,0.00019565,2]
[346373637,1734919841437,-1085.7,0.00019565,2]
[346373638,1734919841448,-688.33,0.00019565,2]
[346373639,1734919841458,-1370.39,0.00019565,2]
[346373640,1734919841469,-500.0,0.00019565,2]
[346373641,1734919841481,-1000.0,0.00019565,2]
[346373642,1734919841494,-755.58,0.00019565,2]
[346373643,1734919841507,-2255.84,0.00019565,2]
[346373644,1734919841519,-1097.91,0.00019565,2]
[346373645,1734919841531,-500.0,0.00019566,2]
[346373646,1734919841544,-500.0,0.00019566,2]
[346373647,1734919841558,-500.0,0.00019566,2]
[346373648,1734919841572,-579.84,0.00019566,2]
[346373649,1734919841584,-500.0,0.00019566,2]
[346373650,1734919841598,-500.0,0.00019566,2]
[346373651,1734919841610,-500.0,0.00019566,2]
[346373652,1734919841624,-500.0,0.00019566,2]
[346373653,1734919841639,-500.0,0.00019566,2]
[346373654,1734919841651,-500.0,0.00019566,2]
[346373655,1734919841663,-500.0,0.00019566,2]
[346373656,1734919841675,-500.0,0.00019566,2]
[346373657,1734919841686,-500.0,0.00019566,2]
[346373658,1734919841698,-500.0,0.00019566,2]
[346373659,1734919841709,-605.85,0.00019566,2]
[346373660,1734919841721,-500.0,0.00019566,2]
[346373661,1734919841733,-500.0,0.00019566,2]
[346373662,1734919841744,-845.24403731,0.00019566,2]
[346373663,1734919841756,-639.02,0.00019566,2]
[346373664,1734919841766,-588.62,0.00019566,2]
[346373665,1734919841777,-500.0,0.00019566,2]
[346373666,1734919841787,-500.0,0.00019566,2]
[346373667,1734919841798,-500.0,0.00019566,2]
[346373668,1734919841809,-500.0,0.00019567,2]
[346373669,1734919841823,-500.0,0.00019567,2]
[346373670,1734919841834,-522.965,0.00019598,2]
[346373671,1734919841845,-151.464,0.00019598,2]
[346373672,1734919841857,-3887.0,0.00019598,2]
[346373673,1734919841867,-1040.254,0.00019598,2]
[346373674,1734919841877,-165.10718722,0.00019611,2]
[346373675,1734919841888,-845.24403731,0.00019622,2]
[346373676,1734919841900,-845.24403731,0.00019677,2]
[346373677,1734919841912,-165.10718722,0.00019683,2]
[346373678,1734919841922,-494.04623037,0.000197,2]
[346373679,1734919841932,-845.24403731,0.00019733,2]
[346373680,1734919841942,-5000.0,0.00019739,2]
[346373681,1734919841952,-165.1522,0.00019739,2]
[346373682,1734919841963,-1999.2291,0.00019741,2]
[346373683,1734919841974,-165.10718722,0.00019755,2]
[346373684,1734919841985,-187.04,0.00019763,2]
[346373685,1734919841996,-500.0,0.00019773,2]
[346373686,1734919842007,-712.53,0.00019773,2]
[346373687,1734919842018,-371.14057667,0.00019773,2]
[346373688,1734919842029,-500.0,0.00019773,2]
[346373689,1734919842040,-500.0,0.00019773,2]
[346373690,1734919842050,-459.64617444,0.00019773,2]
[346373691,1734919842061,-500.0,0.00019773,2]
[346373692,1734919842071,-500.0,0.00019773,2]
[346373693,1734919842082,-500.0,0.00019773,2]
[346373694,1734919842092,-500.0,0.00019773,2]
[346373695,1734919842106,-500.0,0.00019773,2]
[346373696,1734919842120,-580.34,0.00019773,2]
[346373697,1734919842131,-500.0,0.00019773,2]
[346373698,1734919842142,-500.0,0.00019773,2]
[346373699,1734919842154,-500.0,0.00019773,2]
[346373700,1734919842164,-500.0,0.00019773,2]
[346373701,1734919842175,-639.17,0.00019773,2]
[346373702,1734919842186,-530.43,0.00019773,2]
[346373703,1734919842196,-500.0,0.00019773,2]
[346373704,1734919842210,-557.02,0.00019773,2]
[346373705,1734919842221,-1414.392083,0.00019773,2]
[346373706,1734919842231,-1160.181753,0.00019773,2]
[346373707,1734919842242,-578.08,0.00019773,2]
[346373708,1734919842254,-500.0,0.00019773,2]
[346373709,1734919842265,-589.08,0.00019773,2]
[346373710,1734919842276,-500.0,0.00019773,2]
[346373711,1734919842287,-500.0,0.00019773,2]
[346373712,1734919842298,-500.0,0.00019773,2]
[346373713,1734919842308,-500.0,0.00019773,2]
[346373714,1734919842319,-500.0,0.00019773,2]
[346373715,1734919842329,-500.0,0.00019773,2]
[346373716,1734919842339,-500.0,0.00019773,2]
[346373717,1734919842352,-500.0,0.00019773,2]
[346373718,1734919842363,-509.12,0.00019773,2]
[346373719,1734919842374,-500.0,0.00019773,2]
[346373720,1734919842385,-500.0,0.00019773,2]
[346373721,1734919842396,-502.52,0.00019773,2]
[346373722,1734919842407,-500.0,0.00019773,2]
[346373723,1734919842419,-1165.63,0.00019773,2]
[346373724,1734919842429,-598.75,0.00019773,2]
[346373725,1734919842440,-500.0,0.00019773,2]
[346373726,1734919842451,-539.42,0.00019773,2]
[346373727,1734919842462,-509.44,0.00019773,2]
[346373728,1734919842473,-500.0,0.00019773,2]
[346373729,1734919842483,-500.0,0.00019773,2]
[346373730,1734919842494,-500.0,0.00019773,2]
[346373731,1734919842506,-500.0,0.00019773,2]
[346373732,1734919842516,-500.0,0.00019773,2]
[346373733,1734919842527,-500.0,0.00019773,2]
[346373734,1734919842538,-783.05,0.00019773,2]
[346373735,1734919842549,-820.37,0.00019773,2]
[346373736,1734919842559,-500.0,0.00019773,2]
[346373737,1734919842570,-720.27,0.00019773,2]
[346373738,1734919842581,-543.86,0.00019773,2]
[346373739,1734919842593,-631.13,0.00019773,2]
[346373740,1734919842607,-1380.32,0.00019773,2]
[346373741,1734919842618,-711.02,0.00019773,2]
[346373742,1734919842629,-2494.88,0.00019773,2]
[346373743,1734919842639,-500.0,0.00019773,2]
[346373744,1734919842650,-1255.77,0.00019773,2]
[346373745,1734919842661,-500.0,0.00019773,2]
[346373746,1734919842672,-774.42,0.00019773,2]
[346373747,1734919842682,-500.0,0.00019773,2]
[346373748,1734919842693,-1056.53,0.00019773,2]
[346373749,1734919842703,-2983.09,0.00019773,2]
[346373750,1734919842715,-750.07,0.00019773,2]
[346373751,1734919842725,-546.01,0.00019773,2]
[346373752,1734919842736,-866.25,0.00019773,2]
[346373753,1734919842747,-2285.77,0.00019773,2]
[346373754,1734919842758,-638.68,0.00019773,2]
[346373755,1734919842768,-744.28,0.00019773,2]
[346373756,1734919842779,-500.0,0.00019773,2]
[346373757,1734919842790,-549.42,0.00019773,2]
[346373758,1734919842800,-682.67,0.00019773,2]
[346373759,1734919842811,-560.64,0.00019773,2]
[346373760,1734919842822,-500.0,0.00019773,2]
[346373761,1734919842832,-538.03,0.00019773,2]
[346373762,1734919842843,-500.0,0.00019773,2]
[346373763,1734919842857,-932.97,0.00019773,2]
[346373764,1734919842869,-795.15,0.00019773,2]
[346373765,1734919842881,-500.0,0.00019773,2]
[346373766,1734919842892,-2008.35,0.00019773,2]
[346373767,1734919842902,-778.32,0.00019773,2]
[346373768,1734919842913,-1283.75,0.00019773,2]
[346373769,1734919842924,-500.0,0.00019773,2]
[346373770,1734919842935,-734.16,0.00019773,2]
[346373772,1734919842945,-648.74,0.00019773,2]
[346373773,1734919842956,-871.95,0.00019773,2]
[346373775,1734919842966,-500.0,0.00019773,2]
[346373776,1734919842976,-500.0,0.00019773,2]
[346373777,1734919842987,-765.24,0.00019773,2]
[346373778,1734919842999,-1594.96,0.00019773,2]
[346373779,1734919843010,-2941.55,0.00019773,2]
[346373780,1734919843020,-2122.64,0.00019773,2]
[346373781,1734919843031,-1137.05,0.00019773,2]
[346373782,1734919843041,-1884.83,0.00019773,2]
[346373783,1734919843051,-2006.44,0.00019773,2]
[346373784,1734919843062,-500.0,0.00019773,2]
[346373785,1734919843072,-2122.0,0.00019773,2]
[346373786,1734919843084,-702.11,0.00019773,2]
[346373787,1734919843095,-500.0,0.00019773,2]
[346373788,1734919843108,-500.0,0.00019773,2]
[346373789,1734919843118,-500.0,0.00019773,2]
[346373790,1734919843130,-500.0,0.00019773,2]
[346373791,1734919843141,-1688.06,0.00019773,2]
[346373792,1734919843151,-1274.54,0.00019773,2]
[346373793,1734919843162,-567.54,0.00019773,2]
[346373794,1734919843173,-500.0,0.00019773,2]
[346373795,1734919843183,-534.34,0.00019773,2]
[346373796,1734919843194,-930.24,0.00019773,2]
[346373797,1734919843207,-505.94,0.00019773,2]
[346373798,1734919843217,-500.0,0.00019773,2]
[346373799,1734919843227,-504.59,0.00019773,2]
[346373800,1734919843238,-506.91,0.00019773,2]
[346373801,1734919843249,-510.88,0.00019773,2]
[346373803,1734919843261,-868.89,0.00019773,2]
[346373806,1734919843271,-4121.64,0.00019773,2]
[346373807,1734919843283,-500.0,0.00019773,2]
[346373809,1734919843294,-1992.85,0.00019773,2]
[346373811,1734919843305,-736.85,0.00019773,2]
[346373812,1734919843315,-500.0,0.00019773,2]
[346373813,1734919843326,-3198.53,0.00019773,2]
[346373814,1734919843336,-724.39,0.00019773,2]
[346373816,1734919843346,-500.0,0.00019773,2]
[346373817,1734919843358,-1520.55,0.00019773,2]
[346373818,1734919843368,-509.89,0.00019773,2]
[346373819,1734919843380,-500.0,0.00019773,2]
[346373820,1734919843391,-590.06,0.00019773,2]
[346373821,1734919843401,-500.0,0.00019773,2]
[346373822,1734919843412,-957.53,0.00019773,2]
[346373823,1734919843423,-500.0,0.00019773,2]
[346373824,1734919843434,-4431.66,0.00019773,2]
[346373825,1734919843444,-500.0,0.00019773,2]
[346373826,1734919843454,-808.19,0.00019773,2]
[346373827,1734919843463,-780.83,0.00019773,2]
[346373828,1734919843778,-500.0,0.00019773,2]
[346373830,1734919843805,-500.0,0.00019773,2]
[346373831,1734919843823,-522.09,0.00019773,2]
[346373832,1734919843832,-500.0,0.00019773,2]
[346373833,1734919843842,-555.78,0.00019773,2]
[346373834,1734919843851,-987.43,0.00019773,2]
[346373835,1734919843861,-537.16,0.00019773,2]
[346373836,1734919843870,-500.0,0.00019773,2]
[346373837,1734919843879,-868.9,0.00019773,2]
[346373838,1734919843889,-217.8578447,0.00019784,2]
[346373839,1734919843898,-845.24403731,0.00019789,2]
[346373840,1734919843907,-404.35242296,0.000198,2]
[346373841,1734919843921,-5646.0203,0.000198,3]
[346373842,1734919843933,-1015.0,0.000198,2]
[346373843,1734919843943,-165.10718722,0.00019828,2]
[346373844,1734919843952,-500.0,0.00019839,2]
[346373845,1734919843961,-1579.66,0.00019839,2]
[346373846,1734919843970,-2050.29,0.00019839,2]
[346373847,1734919843979,-10051.38,0.00019839,2]
[346373848,1734919843989,-1199.03,0.00019839,2]
[346373849,1734919844001,-722.85,0.00019839,2]
[346373850,1734919844010,-514.7,0.00019839,2]
[346373851,1734919844019,-1469.37,0.00019839,2]
[346373852,1734919844028,-7966.05,0.00019839,2]
[346373853,1734919844037,-500.0,0.00019839,2]
[346373854,1734919844046,-838.24,0.00019839,2]
[346373855,1734919844055,-1085.7,0.00019839,2]
[346373856,1734919844064,-688.33,0.00019839,2]
[346373857,1734919844073,-1370.39,0.00019839,2]
[346373858,1734919844082,-500.0,0.00019839,2]
[346373859,1734919844091,-1000.0,0.00019839,2]
[346373860,1734919844100,-755.58,0.00019839,2]
[346373861,1734919844110,-2255.84,0.00019839,2]
[346373862,1734919844119,-1097.91,0.00019839,2]
[346373863,1734919844128,-500.0,0.0001984,2]
[346373864,1734919844137,-500.0,0.0001984,2]
[346373865,1734919844146,-500.0,0.0001984,2]
[346373866,1734919844155,-579.84,0.0001984,2]
[346373867,1734919844164,-500.0,0.0001984,2]
[346373868,1734919844173,-500.0,0.0001984,2]
[346373869,1734919844181,-500.0,0.0001984,2]
[346373870,1734919844192,-500.0,0.0001984,2]
[346373871,1734919844202,-500.0,0.0001984,2]
[346373872,1734919844211,-500.0,0.0001984,2]
[346373873,1734919844220,-500.0,0.0001984,2]
[346373874,1734919844230,-500.0,0.0001984,2]
[346373875,1734919844239,-500.0,0.0001984,2]
[346373876,1734919844248,-500.0,0.0001984,2]
[346373877,1734919844257,-500.0,0.0001984,2]
[346373878,1734919844266,-605.85,0.0001984,2]
[346373879,1734919844275,-500.0,0.0001984,2]
[346373880,1734919844285,-500.0,0.0001984,2]
[346373881,1734919844298,-639.02,0.0001984,2]
[346373882,1734919844308,-588.62,0.0001984,2]
[346373883,1734919844317,-500.0,0.0001984,2]
[346373884,1734919844326,-500.0,0.0001984,2]
[346373885,1734919844336,-500.0,0.0001984,2]
[346373886,1734919844347,-500.0,0.0001984,2]
[346373887,1734919844359,-500.0,0.00019841,2]
[346373888,1734919844370,-500.0,0.00019841,2]
[346373889,1734919844379,-845.24403731,0.00019844,2]
[346373890,1734919844388,-150.0,0.0001989,2]
[346373891,1734919844397,-2011.0,0.0001989,2]
[346373892,1734919844406,-150.0,0.0001989,2]
[346373893,1734919844415,-633.0,0.0001989,2]
[346373894,1734919844425,-565.0,0.0001989,2]
[346373895,1734919844434,-1899.0,0.0001989,2]
[346373896,1734919844443,-918.993,0.0001989,2]
[346373897,1734919844452,-3770.0,0.0001989,2]
[346373898,1734919844461,-818.0,0.0001989,2]
[346373899,1734919844470,-1256.0,0.0001989,2]
[346373900,1734919844479,-3682.0,0.0001989,2]
[346373901,1734919844488,-536.0,0.0001989,2]
[346373902,1734919844498,-1175.594,0.000199,2]
[346373903,1734919844507,-178.99694052,0.000199,2]
[346373904,1734919844517,-161.3768649,0.000199,2]
[346373905,1734919844527,-343.35439051,0.000199,2]
[346373906,1734919844536,-845.24403731,0.000199,2]
[346373907,1734919844546,-209.48478231,0.000199,3]
[346373908,1734919844555,-165.10718722,0.000199,2]
[346373909,1734919844564,-3965.47470906,0.000199,2]
[346373910,1734919844574,-7143.55489997,0.000199,2]
[346373911,1734919844583,-700.0,0.0001997,2]
[346373912,1734919844593,-700.0,0.0001997,2]
[346373913,1734919844607,-700.0,0.0001997,2]
[346373914,1734919844617,-700.0,0.0001997,2]
[346373915,1734919844626,-804.32537622,0.0001997,2]
[346373916,1734919844636,-400.0,0.0001997,2]
[346373917,1734919844645,-400.0,0.0001997,2]
[346373918,1734919844654,-400.0,0.0001997,2]
[346373919,1734919844664,-401.87219522,0.0001997,2]
[346373920,1734919844673,-501.3833241,0.00019973,2]
[346373921,1734919844682,-160.1124278,0.00019973,2]
[346373922,1734919844691,-75069.48784662,0.0001998,2]
[346373923,1734919844701,-259.0,0.0001999,2]
[346373924,1734919844710,-153.0,0.00019992,2]
[346373925,1734919844719,-153.0,0.00019992,2]
[346373926,1734919844728,-153.0,0.00019992,2]
[346373927,1734919844737,-153.0,0.00019992,2]
[346373928,1734919844746,-153.0,0.00019992,2]
[346373929,1734919844756,-153.0,0.00019992,2]
[346373930,1734919844766,-153.0,0.00019992,2]
[346373931,1734919844775,-153.0,0.00019992,2]
[346373932,1734919844784,-153.0,0.00019992,2]
[346373933,1734919844793,-153.0,0.00019992,2]
[346373934,1734919844802,-153.0,0.00019992,2]
[346373935,1734919844811,-153.0,0.00019992,2]
[346373936,1734919844820,-153.0,0.00019992,2]
[346373937,1734919844830,-153.0,0.00019992,2]
[346373938,1734919844839,-153.0,0.00019992,2]
[346373939,1734919844847,-153.0,0.00019992,2]
[346373940,1734919844858,-153.0,0.00019992,2]
[346373941,1734919844867,-153.0,0.00019992,2]
[346373942,1734919844877,-153.0,0.00019992,2]
[346373943,1734919844887,-153.0,0.00019992,2]
[346373944,1734919844896,-153.0,0.00019992,2]
[346373945,1734919844905,-153.0,0.00019992,2]
[346373946,1734919844915,-153.0,0.00019992,2]
[346373947,1734919844924,-153.0,0.00019992,2]
[346373948,1734919844933,-153.0,0.00019992,2]
[346373949,1734919844941,-153.0,0.00019992,2]
[346373950,1734919844950,-153.0,0.00019992,2]
[346373951,1734919844959,-153.0,0.00019992,2]
[346373952,1734919844968,-153.0,0.00019992,2]
[346373953,1734919844978,-153.0,0.00019992,2]
[346373954,1734919844986,-2375.6098753,0.00019996,2]
[346373955,1734919844997,-2026.7100273,0.00019996,2]
[346373956,1734919845007,-1677.8101792,0.00019996,2]
[346373957,1734919845016,-1328.9103312,0.00019996,2]
[346373958,1734919845025,-980.0104832,0.00019996,2]
[346373959,1734919845034,-631.1106351,0.00019996,2]
[346373960,1734919845043,-2198.1436425,0.00019996,2]
[346373961,1734919845053,-2102.5381079,0.00019996,2]
[346373962,1734919845062,-2006.9325734,0.00019996,2]
[346373963,1734919845071,-1911.3270389,0.00019996,2]
[346373964,1734919845081,-1815.7215043,0.00019996,2]
[346373965,1734919845090,-1720.1159698,0.00019996,2]
[346373966,1734919845101,-793.42057743,0.00019997,2]
[346373967,1734919845110,-333.122309,0.00019997,2]
[346373968,1734919845119,-333.122309,0.00019997,2]
[346373969,1734919845128,-333.122309,0.00019997,2]
[346373970,1734919845138,-333.122309,0.00019997,2]
[346373971,1734919845147,-333.122309,0.00019997,2]
[346373972,1734919845156,-333.122309,0.00019997,2]
[346373973,1734919845165,-333.122309,0.00019997,2]
[346373974,1734919845174,-333.122309,0.00019997,2]
[346373975,1734919845183,-333.122309,0.00019997,2]
[346373976,1734919845193,-333.122309,0.00019997,2]
[346373977,1734919845203,-333.122309,0.00019997,3]
[346373978,1734919845213,-333.122309,0.00019997,3]
[346373979,1734919845223,-333.122309,0.00019997,3]
[346373980,1734919845232,-333.122309,0.00019997,3]
[346373981,1734919845242,-333.122309,0.00019997,3]
[346373982,1734919845252,-333.122309,0.00019997,3]
[346373983,1734919845261,-333.122309,0.00019997,3]
[346373984,1734919845270,-333.122309,0.00019997,3]
[346373985,1734919845279,-238.14809385,0.00019997,2]
[346373986,1734919845288,-151.26397295,0.00019998,2]
[346373987,1734919845298,-333.122309,0.00019998,3]
[346373988,1734919845307,-333.122309,0.00019998,3]
[346373989,1734919845316,-333.122309,0.00019998,3]
[346373990,1734919845325,-333.122309,0.00019998,3]
[346373991,1734919845334,-333.122309,0.00019998,3]
[346373992,1734919845343,-333.122309,0.00019998,3]
[346373993,1734919845354,-333.122309,0.00019998,3]
[346373994,1734919845364,-333.122309,0.00019998,3]
[346373995,1734919845374,-333.122309,0.00019998,3]
[346373996,1734919845384,-333.122309,0.00019998,3]
[346373997,1734919845393,-333.122309,0.00019998,2]
[346373998,1734919845402,-333.122309,0.00019998,2]
[346373999,1734919845411,-333.122309,0.00019998,2]
[346374000,1734919845420,-333.122309,0.00019998,2]
[346374001,1734919845429,-333.122309,0.00019998,2]
[346374002,1734919845438,-333.122309,0.00019998,2]
[346374003,1734919845447,-333.122309,0.00019998,2]
[346374004,1734919845456,-333.122309,0.00019998,2]
[346374005,1734919845464,-333.122309,0.00019998,2]
[346374006,1734919845473,-333.122309,0.00019998,2]
[346374007,1734919845483,-500.0,0.00019998,2]
[346374008,1734919845493,-305.89578756,0.00019999,2]
[346374009,1734919845502,-300.0,0.00019999,2]
[346374010,1734919845511,-300.0,0.00019999,2]
[346374011,1734919845520,-666.0,0.00019999,2]
[346374012,1734919845529,-300.0,0.00019999,2]
[346374013,1734919845539,-333.122309,0.00019999,2]
[346374014,1734919845548,-333.122309,0.00019999,2]
[346374015,1734919845557,-333.122309,0.00019999,2]
[346374016,1734919845566,-333.122309,0.00019999,2]
[346374017,1734919845575,-333.122309,0.00019999,2]
[346374018,1734919845585,-333.122309,0.00019999,2]
[346374019,1734919845594,-333.122309,0.00019999,2]
[346374020,1734919845605,-333.122309,0.00019999,2]
[346374021,1734919845614,-333.122309,0.00019999,3]
[346374022,1734919845623,-333.122309,0.00019999,3]
[346374023,1734919845633,-333.122309,0.00019999,3]
[346374024,1734919845642,-333.122309,0.00019999,3]
[346374025,1734919845651,-333.122309,0.00019999,3]
[346374026,1734919845660,-333.122309,0.00019999,3]
[346374027,1734919845669,-333.122309,0.00019999,3]
[346374028,1734919845678,-333.122309,0.00019999,3]
[346374029,1734919845687,-333.122309,0.00019999,3]
[346374030,1734919845696,-333.122309,0.00019999,3]
[346374031,1734919845706,-113335.65809055,0.00019999,2]
[346374032,1734919845715,-682.64,0.00019999,2]
[346374033,1734919845724,-500.0,0.00019999,2]
[346374034,1734919845733,-500.0,0.00019999,2]
[346374035,1734919845742,-500.0,0.00019999,2]
[346374036,1734919845751,-500.0,0.00019999,2]
[346374037,1734919845761,-542.81245394,0.00019999,2]
[346374038,1734919845770,-1030.0,0.00019999,2]
[346374039,1734919845779,-13069.7811,0.0002,2]
[346374040,1734919845788,-1210162.52136629,0.0002,3]
[346374041,1734919845797,-10284.3370835,0.0002,3]
[346374042,1734919845806,-15430.8101883,0.0002,2]
[346374043,1734919845815,-9382350.67409435,0.0002,2]
[346374044,1734919846050,-342.108,0.00019499,2]
[346374045,1734919846081,-157.892,0.00019499,2]
[346374046,1734919846090,-500.0,0.00019773,2]
[346374047,1734919846100,-89864.31121673,0.0002,2]
[346374049,1734919846400,-153.0,0.00019992,2]
[346374050,1734919846411,-153.0,0.00019992,2]
[346374051,1734919846420,-32271.61603414,0.0002,2]
[346374052,1734919846432,-144900.51999997,0.0002,2]
[346374053,1734919846868,-6429.18463296,0.00018895,2]
[346374054,1734919846880,-3570.81536704,0.00018895,2]
[346374055,1734919846889,-161267.02595256,0.0002,2]
[346374056,1734920023192,154.92,0.00010137,2]
[346374623,1734920958101,-539.0,0.00016809,2]
[346374710,1734921038387,-203.26,0.00016809,2]
[346374711,1734921038397,-800.0,0.00016822,2]
[346374712,1734921038406,-2426.544631,0.00018546,2]
[346374713,1734921038416,-255.21,0.0001864,2]